Cogmind - Beta 12 @@@ ROGUE MODE // 2024.01.15 @ 01:03:41 Player: lyrabold Result: Destroyed by as-71582 with Assembled Focal Cannon Performance ------------- Evolutions (3) 1500 Regions Visited (12) 2400 Robots Destroyed (224) 1120 Value Destroyed (7414) 7414 Prototype IDs (38) 760 Alien Tech Used (1) 200 Bonus (3382) 3382 TOTAL SCORE: 16776 Bonus ------- High Alert Combat Kills 1336 Follower Combat Kills 246 Entered Garrisons 200 Aligned with FarCom 300 Met Imprinter 300 Destroyed Z-Imprinter 1000 Cogmind --------- Core Integrity 0/700 Matter 261/300 Energy 413/470 System Corruption 0% Temperature Cool (12) Movement Treading (325) Ox2 Location -7/Deep Caves Parts ------- > --- POWER (2) -------- Cooled Ion Engine Reinforced Deuterium Engine > --- PROPULSION (4) --- Armored Treads Medium Treads Zionite Glidesys I > --- UTILITY (6) ------ Experimental Heat Sink Huge Storage Unit Zionite Weapon Casing Improved Medium Armor Plating Improved Medium Armor Plating > --- WEAPON (2) ------- YOLO Cannon > --- INVENTORY (25) --- Neutrino Core Zionite Biocell (600) Zionite Metafield Generator Structural Scanner Encrypted Comm Array Improved Utility Shielding Zionite Weapon Casing Makeshift Hacking Suite Makeshift Hacking Suite Long-range Tractor Beam Improved Trap Extractor (6/6 Dirty Bomb) Light EM Pulse Cannon Improved EM Pulse Cannon Heavy Ion Cannon Firepult Barrage Gun Flak Cannon Improved Grenade Launcher Heavy Missile Launcher Self-destruct Interrupter (50) Self-destruct Interrupter (50) Self-destruct Interrupter (50) Peak State ------------ > --- POWER ------------ Cooled Ion Engine Reinforced Deuterium Engine > --- PROPULSION ------- Armored Treads Medium Treads Medium Treads Zionite Glidesys I > --- UTILITY ---------- Experimental Heat Sink Experimental Heat Sink Improved Cooling System Huge Storage Unit Zionite Weapon Casing Zionite Light Carapace > --- WEAPON ----------- Firepult > --- INVENTORY -------- Light Fission Core Neutrino Core Zionite Biocell Zionite Metafield Generator Structural Scanner Encrypted Comm Array Improved Utility Shielding Improved Medium Armor Plating Improved Medium Armor Plating Hacking Suite Long-range Tractor Beam Improved Trap Extractor Light EM Pulse Cannon Improved EM Pulse Cannon Heavy Ion Cannon YOLO Cannon Barrage Gun Flak Cannon Improved Grenade Launcher Heavy Missile Launcher Self-destruct Interrupter Self-destruct Interrupter Self-destruct Interrupter [Rating: 86] Favorites ----------- Power Reinforced Deuterium Engine Engine Reinforced Deuterium Engine Power Core Light Nuclear Core Propulsion Medium Treads Treads Medium Treads Leg Aluminum Leg Wheel Wheel Hover Unit Zionite Glidesys I Flight Unit Flight Unit Utility Huge Storage Unit Device Structural Scanner Storage Huge Storage Unit Processor Core Analyzer Hackware Hacking Suite Protection Improved Medium Armor Plating Weapon Flak Cannon Energy Gun Lightning Gun Energy Cannon Heavy Ion Cannon Ballistic Gun Shotgun Ballistic Cannon Flak Cannon Launcher Heavy Missile Launcher Special Weapon Mining Laser Impact Weapon Power Maul Piercing Weapon Makeshift Spear Build | -11 -10 -10 -10 -9 -8 -8 -8 -7 -7 -7 -7 -7 ------- Run | Jun Mat Min Exi Min Mat Gar Mat Fac Low Low Zio Dee Slots Evolved 6 | . . . . . 4 . . 2 . . . . Power . | . . . . . . . . . . . . . Propulsion 2 | . . . . . 2 . . . . . . . Utility 4 | . . . . . 2 . . 2 . . . . Weapon . | . . . . . . . . . . . . . Parts Attached 255 | 10 8 13 1 7 19 22 49 57 17 13 15 24 Power 18 | 1 1 . . . 1 3 2 6 . 2 2 . Engine 7 | 1 1 . . . . . . 2 . 1 2 . Core 11 | . . . . . 1 3 2 4 . 1 . . Reactor . | . . . . . . . . . . . . . Propulsion 46 | 5 2 2 . . 7 2 14 11 1 . 1 1 Treads 39 | 2 2 2 . . 4 2 14 11 1 . 1 . Leg 2 | 2 . . . . . . . . . . . . Wheel 3 | 1 . . . . 2 . . . . . . . Hover 1 | . . . . . . . . . . . . 1 Flight 1 | . . . . . 1 . . . . . . . Utility 86 | 2 1 1 1 . 6 5 18 22 5 3 8 14 Device 40 | 1 . . . . 4 1 11 8 4 3 3 5 Storage 9 | 1 1 . 1 . 1 . . 1 . . 3 1 Processor 3 | . . . . . . . . 3 . . . . Hackware 2 | . . . . . . . . 2 . . . . Protection 32 | . . 1 . . 1 4 7 8 1 . 2 8 Artifact . | . . . . . . . . . . . . . Weapon 105 | 2 4 10 . 7 5 12 15 18 11 8 4 9 Energy Gun 15 | . . . . . 3 6 4 . . 2 . . Energy Cannon 11 | . . 2 . . . . . 2 2 . . 5 Ballistic Gun 20 | 2 2 6 . 2 1 . 6 . . . 1 . Ballistic Cannon 26 | . . . . . . 1 2 10 6 3 1 3 Launcher 23 | . . 1 . 3 . 4 2 6 3 3 . 1 Special Weapon 5 | . 2 1 . 2 . . . . . . . . Impact Weapon 3 | . . . . . . 1 1 . . . 1 . Slashing Weapon . | . . . . . . . . . . . . . Piercing Weapon 2 | . . . . . 1 . . . . . 1 . Special Melee Weapon . | . . . . . . . . . . . . . Unidentified Prototypes 11 | . . . . . . . 4 . . 1 . 6 Corrupted Parts 3 | . . . . . . 1 2 . . . . . System Corruption 19 | . . . . . . 5 14 . . . . . Parts Lost 34 | . . 2 . 1 2 3 1 13 1 5 . 6 Power 3 | . . . . . . 1 . 2 . . . . Propulsion 9 | . . 1 . . 1 . 1 2 1 1 . 2 Utility 13 | . . 1 . . . 1 . 6 . 1 . 4 Weapon 9 | . . . . 1 1 1 . 3 . 3 . . Highest Loss Streak 4 | . . 1 . 1 1 1 1 4 1 2 . 4 To Critical Strikes . | . . . . . . . . . . . . . Average Slot Usage (%) 91 | . 99 98 100 100 91 99 98 94 91 80 75 93 Engine 7 | . 13 14 14 14 1 . . 1 7 6 8 14 Core 2 | . . . . . 7 8 9 4 . . . . Treads 26 | . 5 28 28 28 23 36 35 29 29 28 25 22 Leg 1 | . 22 . . . . . . . . . . . Device 9 | . 14 5 . . 12 9 15 9 7 7 7 17 Storage 9 | . 14 14 14 14 9 9 9 7 7 7 9 7 Protection 13 | . . 7 14 14 9 17 11 7 22 16 16 14 Energy Gun 2 | . . . . . 12 17 3 . . 2 . . Ballistic Gun 7 | . 26 26 28 24 5 . 13 . . . 3 1 Ballistic Cannon 4 | . . . . . . . . 13 14 9 2 2 Naked Turns . | . . . . . . . . . . . . . Heaviest Build 256 | 15 30 34 54 55 103 113 113 126 137 127 256 137 Greatest Support 112 | 40 40 40 40 40 83 83 83 112 98 98 104 104 Greatest Overweight (x) 10 | . 1 . 1 1 10 1 1 1 1 1 2 2 Average Overweight (x) . | . . . . 1 3 1 1 . 1 1 1 1 Largest Inventory Capacity 30 | 8 15 15 20 20 25 25 25 25 25 25 30 30 Average Capacity 23 | 7 14 15 19 20 23 25 25 25 25 25 26 25 Most Carried 28 | 6 15 15 20 20 25 25 25 25 25 25 28 27 Average Carried 22 | 5 10 14 16 19 23 24 24 24 23 23 24 24 Final Capacity 30 | 8 15 15 20 20 25 25 25 25 25 25 30 25 Final Carried 28 | 6 14 15 20 20 25 25 25 22 24 25 28 23 Class Distribution -------------------- 44% | Mutant 26% | Trapper-Mutant 22% | Scavenger-Mutant 5% | Hauler-Mutant Dominant Class ---------------- Mutant | -10/Materials Mutant | -10/Mines Mutant | -10/Exiles Mutant | -9/Mines Mutant | -8/Materials Scavenger-Mutant | -8/Garrison Scavenger-Mutant | -8/Materials Mutant | -7/Factory Trapper-Mutant | -7/Lower Caves Trapper-Mutant | -7/Lower Caves Trapper-Mutant | -7/Zion Scavenger-Mutant | -7/Deep Caves Resources | -11 -10 -10 -10 -9 -8 -8 -8 -7 -7 -7 -7 -7 ----------- Run | Jun Mat Min Exi Min Mat Gar Mat Fac Low Low Zio Dee Matter Collected 6659 | 452 548 419 10 61 331 388 1089 1920 482 560 147 252 Remotely 991 | . . . . . . . 165 774 . 52 . . Salvage Created 8029 | 227 538 338 . 71 878 992 1532 2034 464 258 44 653 Parts 410 | 13 32 22 . 14 49 61 68 98 14 15 . 24 Haulers Intercepted 9 | . 2 . . . 3 . 3 1 . . . . Recyclers Shooed 14 | 1 3 1 . . 2 . 3 4 . . . . Parts Field Recycled . | . . . . . . . . . . . . . Retrieved Matter . | . . . . . . . . . . . . . Parts Self-Destructed 20 | . . . . . . . . . 8 12 . . Prevented 2 | . . . . . . . . . . 2 . . Kills | -11 -10 -10 -10 -9 -8 -8 -8 -7 -7 -7 -7 -7 ------- Run | Jun Mat Min Exi Min Mat Gar Mat Fac Low Low Zio Dee Combat Hostiles Destroyed 164 | . 10 16 . 6 11 26 20 44 8 10 . 13 Guns 69 | . 10 14 . 6 9 12 17 . . 1 . . Cannons 41 | . . 1 . . . 2 . 27 3 5 . 3 AOE 44 | . . 1 . . . 9 3 17 4 4 . 6 Classes Destroyed 24 | 3 4 2 . . 3 1 . 5 3 1 . 2 Worker 10 | 2 2 . . . 4 . 1 1 . . . . Builder 10 | . . . . . 2 . 1 7 . . . . Tunneler 10 | 7 . 2 . . . . . 1 . . . . Hauler 9 | . 2 . . . 3 . 3 1 . . . . Recycler 19 | 1 . 1 . . 1 . 5 11 . . . . Minesweeper 1 | . . . . . . . . . 1 . . . Mechanic 1 | . . . . . . . . 1 . . . . Operator 2 | . . . . . 1 . . 1 . . . . Watcher 10 | . 3 . . . 3 . 3 1 . . . . Swarmer 48 | . 3 3 . 6 5 10 3 14 4 . . . Grunt 60 | . 7 3 . . 5 9 11 18 1 6 . . Brawler 5 | . . . . . . . . 3 1 1 . . Duelist 3 | . . . . . . . . 2 . 1 . . Sentry 14 | . . . . . 1 4 6 2 1 . . . Demolisher 1 | . . 1 . . . . . . . . . . Specialist 3 | . . . . . . 3 . . . . . . Hunter 2 | . . . . . . . . 2 . . . . Programmer 3 | . . . . . . . . 3 . . . . Behemoth 1 | . . . . . . . . . 1 . . . Z-Technician 2 | . . . . . . . . . . . . 2 Z-Light 8 | . . . . . . . . . . . . 8 Decomposer 2 | . . . . . . . . . . 2 . . Packrat 1 | . . . . . . . . . 1 . . . Samaritan 2 | . . . . . . . . . 2 . . . Master Thief 2 | . . . . . . . . . . 2 . . Assembled 12 | . . 9 . . . . . . . . . 3 Golem 1 | . . . . . . . . . . . . 1 Best Kill Streak 8 | 7 4 4 . 6 4 3 4 8 4 4 . 6 Combat Bots Only 7 | . 4 3 . 6 4 3 4 7 4 4 . 6 Max Kills in Single Turn 4 | 1 2 2 . 2 2 2 2 4 2 2 . 2 Gunslinging . | . . . . . . . . . . . . . Exploded 4 | . . 1 . . . 2 2 4 2 2 . 2 Melee . | . . . . . . . . . . . . . Uniques/NPCs Destroyed 1 | . . . . . . . . . . . . 1 Z-Imprinter (-7/Deep Caves) Combat | -11 -10 -10 -10 -9 -8 -8 -8 -7 -7 -7 -7 -7 -------- Run | Jun Mat Min Exi Min Mat Gar Mat Fac Low Low Zio Dee Damage Taken 9720 | . 354 692 . 140 431 1241 1048 2865 375 808 . 1766 Core 1222 | . 87 122 . 34 28 147 85 318 57 69 . 275 Absorbed by Shields 740 | . . . . . . . 268 472 . . . . Redirected to Shielding 187 | . . . . . . . . 37 . 36 . 114 Regen/Repaired (Parts) 1512 | . . . . . 91 . 89 . . . 1332 . Core Remaining (%) 51 | 100 . . . 2 . . 52 . . . . . Volleys Fired 650 | 27 63 39 . 20 40 72 104 118 26 34 . 107 Largest 2 | 2 2 2 . 2 2 2 2 2 2 2 . 1 Hottest 250 | 40 100 120 . 100 110 110 110 100 88 92 . 250 Shots Fired 1105 | 54 116 73 . 27 79 137 194 215 46 57 . 107 Gun 640 | 54 106 66 . 14 79 128 182 . . 11 . . Cannon 400 | . . 2 . . . 3 7 200 44 39 . 105 Launcher 39 | . . 2 . . . 6 5 15 2 7 . 2 Special 26 | . 10 3 . 13 . . . . . . . . Kinetic 682 | 54 106 66 . 14 18 3 152 195 34 39 . 1 Thermal 145 | . 10 5 . 13 . . 9 3 1 . . 104 Explosive 39 | . . 2 . . . 6 5 15 2 7 . 2 Electromagnetic 239 | . . . . . 61 128 28 2 9 11 . . Robot Hit Streak 17 | 8 9 8 . 7 7 7 17 17 11 12 . 7 Robot Miss Streak 7 | 3 5 5 . 3 4 4 3 6 7 6 . 5 Penetration Max . | . . . . . . . . . . . . . Secondary Targets 9 | . 1 3 . 1 1 1 2 . . . . . Max Gunslinging Chain 1 | . 1 1 . 1 1 1 1 . . . . . Shots Hit Robots 654 | 32 69 50 . 11 48 79 156 115 36 39 . 19 Core Hits 419 | 11 25 31 . 6 25 40 61 113 31 44 3 29 Critical Kills 3 | 1 . . . . . . . . . . . 2 Critical Parts Destroyed 3 | . 1 . . . 1 . 1 . . . . . Critical Strikes 15 | 1 1 . . . 2 1 2 6 . . . 2 Meltdown 2 | . . . . . . . . . . . . 2 Destroy 4 | 1 1 . . . 1 . 1 . . . . . Blast 6 | . . . . . . . . 6 . . . . Corrupt 3 | . . . . . 1 1 1 . . . . . Melee Attacks 18 | . . . . . 1 5 1 . . . 11 . Impact 17 | . . . . . . 5 1 . . . 11 . Slashing . | . . . . . . . . . . . . . Piercing 1 | . . . . . 1 . . . . . . . Sneak Attacks 1 | . . . . . 1 . . . . . . . Combat Hostiles . | . . . . . . . . . . . . . Follow-up Attacks . | . . . . . . . . . . . . . Damage Inflicted 18595 | 412 968 733 . 183 1323 2122 2865 5601 1054 1188 74 2072 Guns 7075 | 403 903 627 . 176 1042 1375 2494 . . 55 . . Cannons 5551 | . . 17 . . . 39 102 3201 713 564 . 915 Explosions 5485 | . . 82 . . 147 708 265 2285 299 545 . 1154 Melee 60 | . . . . . 60 . . . . . . . Ramming 400 | 9 41 7 . 7 74 . 4 115 42 24 74 3 Kinetic 8169 | 403 903 627 . 176 139 39 1946 2833 525 564 . 14 Thermal 3339 | . 24 17 . . 147 141 122 961 22 . . 1905 Explosive 3532 | . . 82 . . . 567 222 1667 299 545 . 150 Electromagnetic 3095 | . . . . . 903 1375 571 25 166 55 . . Impact . | . . . . . . . . . . . . . Slashing . | . . . . . . . . . . . . . Piercing 60 | . . . . . 60 . . . . . . . Highest Corruption 23 | . . . . . 1 6 23 4 4 4 4 . Average Corruption 6 | . . . . . 1 4 21 1 4 4 4 . Corruption Purged . | . . . . . . . . . . . . . Corruption Blocked . | . . . . . . . . . . . . . Effects 242 | . . . . . 6 35 73 7 67 52 2 . Message Errors 55 | . . . . . 1 6 14 3 19 11 1 . Matter Fused 56 | . . . . . 3 12 14 1 14 12 . . Heat Flow Errors 23 | . . . . . 1 2 8 2 7 3 . . Energy Discharges 26 | . . . . . . 3 10 . 6 6 1 . Parts Rejected 1 | . . . . . . . 1 . . . . . Parts Fused 1 | . . . . . . . . . . 1 . . Data Loss (minor) 34 | . . . . . . 5 11 . 8 10 . . Data Loss (major) 13 | . . . . . . 3 3 1 4 2 . . Misfires 16 | . . . . . . 1 4 . 7 4 . . Alerts 6 | . . . . . . 1 2 . 1 2 . . Weapon Failures 11 | . . . . . 1 2 6 . 1 1 . . Overload Shots . | . . . . . . . . . . . . . Overflow Damage 542 | . . 42 . . 50 38 50 147 45 34 8 128 Projectiles 180 | . . . . . . . . 111 . . . 69 Explosions 303 | . . 42 . . . 38 50 36 45 33 . 59 Melee 59 | . . . . . 50 . . . . 1 8 . Knockbacks 55 | . . . . . . . 5 30 6 13 . 1 Impact 1 | . . . . . . . . 1 . . . . Kinetic 52 | . . . . . . . 5 27 6 13 . 1 Secondary 2 | . . . . . . . . 2 . . . . Self-Inflicted Damage 876 | . . 47 . . 68 . 59 212 . 134 . 356 Shots 28 | . . 1 . . 2 . 3 4 . 4 . 14 Rammed 43 | . 1 3 . 1 5 . 1 9 3 5 14 1 Targets Rammed 64 | 3 11 3 . 1 8 . 1 11 6 5 14 1 Kicked 12 | 3 9 . . . . . . . . . . . Crushed 9 | . 1 . . . 3 . . 2 3 . . . Highest Temperature 681 | . 142 60 . 160 148 194 218 254 274 333 . 681 Average Temperature 75 | . 50 21 . 59 42 27 87 58 83 115 . 222 Received Heat Transfer 2874 | . 165 88 . . 153 441 600 752 48 306 . 321 Effects 6 | . . . . . . . . . . 1 . 5 Shutdowns 1 | . . . . . . . . . . . . 1 Energy Bleed 2 | . . . . . . . . . . . . 2 Matter Decay 1 | . . . . . . . . . . . . 1 Short Circuit 2 | . . . . . . . . . . 1 . 1 Siege Activations . | . . . . . . . . . . . . . Robots Corrupted 5 | . . . . . 2 3 . . . . . . Combat Hostiles 5 | . . . . . 2 3 . . . . . . Parts Fried 29 | . . . . . 8 14 6 . 1 . . . Impact Corruptions 5 | . . . . . . . . . 1 2 2 . Robots Melted 5 | . . . . . . . . . 1 . . 4 Combat Hostiles 5 | . . . . . . . . . 1 . . 4 Parts Melted 31 | . . . . . . 1 . 3 3 . . 24 Heat Transferred 4991 | . 50 37 . . 200 100 222 760 80 . . 3542 Parts Sabotaged . | . . . . . . . . . . . . . Parts Stolen 2 | . . . . . . . . . . 2 . . Parts Stripped . | . . . . . . . . . . . . . Power Chain Reactions 6 | . . . . . 2 3 1 . . . . . Missiles Intercepted . | . . . . . . . . . . . . . Alert | -11 -10 -10 -10 -9 -8 -8 -8 -7 -7 -7 -7 -7 ------- Run | Jun Mat Min Exi Min Mat Gar Mat Fac Low Low Zio Dee Peak Influence 1251 | 50 293 130 . 130 390 1195 921 1251 . . . . Initial 582 | . 32 35 . . 1 180 582 380 . . . . Average 432 | 27 93 53 . 68 229 738 635 787 . . . . Maximum Alert Level 4 | . 1 . . . 1 4 3 4 . . . . Low Security (%) 37 | 100 84 100 . 100 29 4 . . . . . . Level 1 15 | . 15 . . . 70 13 . 12 . . . . Level 2 22 | . . . . . . 32 77 27 . . . . Level 3 17 | . . . . . . 31 22 43 . . . . Level 4 6 | . . . . . . 18 . 16 . . . . Level 5 . | . . . . . . . . . . . . . High Security . | . . . . . . . . . . . . . Max Security . | . . . . . . . . . . . . . Squads Dispatched 21 | . 2 . . . 4 . 3 12 . . . . Investigation 6 | . 2 . . . 2 . 1 1 . . . . Extermination 3 | . . . . . . . . 3 . . . . Reinforcement 7 | . . . . . 1 . 2 4 . . . . Assault 3 | . . . . . . . . 3 . . . . Garrison 2 | . . . . . 1 . . 1 . . . . Intercept . | . . . . . . . . . . . . . Searches Triggered . | . . . . . . . . . . . . . Construction Impeded 2 | . . . . . . . . 2 . . . . Haulers Reinforced . | . . . . . . . . . . . . . Active Scanning Responses . | . . . . . . . . . . . . . Cargo Convoy Interrupts . | . . . . . . . . . . . . . Stealth | -11 -10 -10 -10 -9 -8 -8 -8 -7 -7 -7 -7 -7 --------- Run | Jun Mat Min Exi Min Mat Gar Mat Fac Low Low Zio Dee Distress Signals 9 | . 2 . . . 3 . . 4 . . . . Communications Jammed . | . . . . . . . . . . . . . Distress Signals . | . . . . . . . . . . . . . Times Spotted 213 | . 17 16 . 5 31 25 28 60 8 13 . 10 Peak Tracking Total 6 | . 4 3 . 4 6 4 3 6 4 4 . 5 Tactical Retreats 9 | . 2 . . . 2 2 1 2 . . . . Traps | -11 -10 -10 -10 -9 -8 -8 -8 -7 -7 -7 -7 -7 ------- Run | Jun Mat Min Exi Min Mat Gar Mat Fac Low Low Zio Dee Traps Triggered 22 | . . . . . 1 16 4 1 . . . . Indirectly . | . . . . . . . . . . . . . Trap Hack Attempts . | . . . . . . . . . . . . . Triggered . | . . . . . . . . . . . . . Disarmed . | . . . . . . . . . . . . . Reprogrammed . | . . . . . . . . . . . . . Reused 5 | . . . . . . . . . 5 . . . Traps Extracted 7 | . . . . . . . . . 6 1 . . Installed 14 | . . . . . . . . . 11 . . 3 Triggered 7 | . . 1 . . . . . . 5 1 . . Most Traps Carried 9 | . . . . . . . . . 9 9 9 9 Power Sources Rigged 8 | . . . . . 1 . 3 2 1 1 . . Exploded 3 | . . . . . . . 1 . . 2 . . Machines | -11 -10 -10 -10 -9 -8 -8 -8 -7 -7 -7 -7 -7 ---------- Run | Jun Mat Min Exi Min Mat Gar Mat Fac Low Low Zio Dee Machines Disabled 24 | . 1 . . . 3 6 2 11 . . . 1 Max in Single Turn 6 | . 1 . . . 1 2 2 6 . . . 1 Garrison Access 1 | . . . . . . . . 1 . . . . Garrison Relay 3 | . . . . . . 3 . . . . . . Phase Generator 1 | . . . . . . 1 . . . . . . Machines Repaired . | . . . . . . . . . . . . . Machines Sabotaged . | . . . . . . . . . . . . . Overloaded Fab Kills . | . . . . . . . . . . . . . Hacking | -11 -10 -10 -10 -9 -8 -8 -8 -7 -7 -7 -7 -7 --------- Run | Jun Mat Min Exi Min Mat Gar Mat Fac Low Low Zio Dee Machines Accessed 36 | . 11 1 2 . 8 3 3 8 . . . . Terminals 23 | . 8 1 . . 5 3 2 4 . . . . Fabricators 1 | . . . . . . . . 1 . . . . Repair Stations 3 | . 1 . . . 1 . 1 . . . . . Recycling Units 4 | . 2 . . . . . . 2 . . . . Scanalyzers 1 | . . . . . 1 . . . . . . . Garrison Access 2 | . . . . . 1 . . 1 . . . . Total Hacks 101 | . 36 3 2 . 26 6 12 16 . . . . Successful 53 | . 20 1 2 . 16 1 7 6 . . . . Failed 47 | . 15 2 . . 10 5 5 10 . . . . Catastrophic 8 | . 1 . . . 2 1 1 3 . . . . Database Lockouts 1 | . 1 . . . . . . . . . . . Manual 48 | . 17 3 1 . 14 1 8 4 . . . . Terminals 71 | . 31 3 . . 13 6 9 9 . . . . Fabricators 2 | . . . . . . . . 2 . . . . Repair Stations 8 | . 1 . . . 4 . 3 . . . . . Recycling Units 8 | . 4 . . . . . . 4 . . . . Scanalyzers 3 | . . . . . 3 . . . . . . . Garrison Access 7 | . . . . . 6 . . 1 . . . . Terminal Hacks 26 | . 13 1 2 . 2 1 4 3 . . . . Record 1 | . . . 1 . . . . . . . . . Part Schematic 2 | . . 1 . . . . . 1 . . . . Robot Analysis 2 | . 2 . . . . . . . . . . . Prototype ID Bank 4 | . 4 . . . . . . . . . . . Branch Access Points 1 | . . . . . . . . 1 . . . . Emergency Access Points 1 | . . . . . . 1 . . . . . . Terminal Index 1 | . . . . . . . 1 . . . . . Recycling Unit Index 1 | . 1 . . . . . . . . . . . Unreport Threat 1 | . 1 . . . . . . . . . . . Locate Traps 3 | . . . . . 1 . 1 1 . . . . Patrol Status 1 | . 1 . . . . . . . . . . . Transport Status 1 | . 1 . . . . . . . . . . . Hauler Manifests 2 | . 1 . . . 1 . . . . . . . Zone Layout 4 | . 2 . . . . . 2 . . . . . EX-Prototype ID Bank 1 | . . . 1 . . . . . . . . . Fabricator Hacks . | . . . . . . . . . . . . . Repair Station Hacks 6 | . . . . . 4 . 2 . . . . . Scan Component 3 | . . . . . 2 . 1 . . . . . Repair 3 | . . . . . 2 . 1 . . . . . Recycling Unit Hacks 3 | . 1 . . . . . . 2 . . . . Retrieve Components 3 | . 1 . . . . . . 2 . . . . Scanalyzer 2 | . . . . . 2 . . . . . . . Insert Component 1 | . . . . . 1 . . . . . . . Analyze 1 | . . . . . 1 . . . . . . . Garrison Access Hacks 2 | . . . . . 1 . . 1 . . . . Unlock Access 1 | . . . . . 1 . . . . . . . Seal Access 1 | . . . . . . . . 1 . . . . Unauthorized Hacks 14 | . 6 . . . 7 . 1 . . . . . Terminals 7 | . 3 . . . 3 . 1 . . . . . Assimilate 1 | . 1 . . . . . . . . . . . Botnet 2 | . 1 . . . 1 . . . . . . . Disrupt 1 | . . . . . 1 . . . . . . . Operators 3 | . 1 . . . 1 . 1 . . . . . Fabricators . | . . . . . . . . . . . . . Repair Stations 1 | . 1 . . . . . . . . . . . Mechanics 1 | . 1 . . . . . . . . . . . Recycling Units 2 | . 2 . . . . . . . . . . . Tunnel 2 | . 2 . . . . . . . . . . . Scanalyzers . | . . . . . . . . . . . . . Garrison Access 4 | . . . . . 4 . . . . . . . Broadcast 1 | . . . . . 1 . . . . . . . Reprogram 1 | . . . . . 1 . . . . . . . Intercept 1 | . . . . . 1 . . . . . . . Watchers 1 | . . . . . 1 . . . . . . . Data Cores Recovered . | . . . . . . . . . . . . . Used . | . . . . . . . . . . . . . Hacking Detections 29 | . 7 1 . . 8 3 3 7 . . . . Full Trace Events 4 | . . . . . 1 1 1 1 . . . . Feedback Events . | . . . . . . . . . . . . . Feedback Blocked . | . . . . . . . . . . . . . Robot Schematics Acquired 4 | . . . . . . . . . . . 4 . Robots Built . | . . . . . . . . . . . . . Authchips . | . . . . . . . . . . . . . Time . | . . . . . . . . . . . . . Total Robot Build Rating . | . . . . . . . . . . . . . Part Schematics Acquired 17 | . . 1 . . 1 . . 1 . . 14 . Parts Built . | . . . . . . . . . . . . . Authchips . | . . . . . . . . . . . . . Time . | . . . . . . . . . . . . . Total Part Build Rating . | . . . . . . . . . . . . . Parts Repaired 3 | . . . . . 2 . 1 . . . . . Time 88 | . . . . . 62 . 26 . . . . . Parts Recycled . | . . . . . . . . . . . . . Recycled Matter . | . . . . . . . . . . . . . Retrieved Matter . | . . . . . . . . . . . . . Retrieved Components 24 | . 9 . . . . . . 15 . . . . Parts Scanalyzed 1 | . . . . . 1 . . . . . . . Part Schematics Acquired 1 | . . . . . 1 . . . . . . . Parts Damaged . | . . . . . . . . . . . . . Bothacking | -11 -10 -10 -10 -9 -8 -8 -8 -7 -7 -7 -7 -7 ------------ Run | Jun Mat Min Exi Min Mat Gar Mat Fac Low Low Zio Dee Used RIF Installer . | . . . . . . . . . . . . . Robots Hacked . | . . . . . . . . . . . . . Non-combat . | . . . . . . . . . . . . . Combat . | . . . . . . . . . . . . . Robot Hacks Applied . | . . . . . . . . . . . . . Relay Couplers Released 10 | . . . . . . 10 . . . . . . Machine Destruction 10 | . . . . . . 10 . . . . . . Fabnet Peak Effective % . | . . . . . . . . . . . . . Robots Rewired . | . . . . . . . . . . . . . Allies Hacked . | . . . . . . . . . . . . . Hacks Repelled . | . . . . . . . . . . . . . Allies | -11 -10 -10 -10 -9 -8 -8 -8 -7 -7 -7 -7 -7 -------- Run | Jun Mat Min Exi Min Mat Gar Mat Fac Low Low Zio Dee Total Allies 5 | . 1 . . . 2 2 . . . . . . Largest Group 2 | . 1 1 . . 2 1 . . . . . . Highest-Rated Group 39 | . 10 10 . . 32 39 . . . . . . Highest-Rated Ally 39 | . 10 10 . . 16 39 . . . . . . Total Orders 6 | . 4 2 . . . . . . . . . . STAY 3 | . 2 1 . . . . . . . . . . FOLLOW 3 | . 2 1 . . . . . . . . . . Ally Attacks 76 | . . . . . 65 11 . . . . . . Total Damage 795 | . . . . . 688 107 . . . . . . Kills 13 | . . . . . 11 2 . . . . . . Allies Corrupted . | . . . . . . . . . . . . . Allies Melted . | . . . . . . . . . . . . . Intel | -11 -10 -10 -10 -9 -8 -8 -8 -7 -7 -7 -7 -7 ------- Run | Jun Mat Min Exi Min Mat Gar Mat Fac Low Low Zio Dee Robot Analysis Total 2 | . 2 . . . . . . . . . . . Derelict Logs Recovered 7 | . . 1 . 1 . . . . 2 2 1 . Drone Launches . | . . . . . . . . . . . . . Drone Recoveries . | . . . . . . . . . . . . . Exploration | -11 -10 -10 -10 -9 -8 -8 -8 -7 -7 -7 -7 -7 ------------- Run | Jun Mat Min Exi Min Mat Gar Mat Fac Low Low Zio Dee Turns Passed 21367 | 305 1429 1309 664 755 1230 1734 1601 2189 2717 2103 3016 2315 Spaces Moved 8350 | 130 647 701 301 252 510 593 492 863 1083 827 1137 814 Core 8 | 8 . . . . . . . . . . . . Treads 7431 | 9 161 701 301 252 198 593 492 863 1083 827 1137 814 Legs 599 | 113 486 . . . . . . . . . . . Wheels 312 | . . . . . 312 . . . . . . . Hover . | . . . . . . . . . . . . . Flight . | . . . . . . . . . . . . . Fastest Speed 50 | 50 120 160 160 240 110 240 235 160 238 238 162 242 Average Speed 220 | 118 179 160 219 240 189 240 239 193 238 238 256 246 Slowest Speed 325 | 160 190 160 240 240 320 240 240 243 238 243 322 325 Overloaded Moves . | . . . . . . . . . . . . . Propulsion Burnouts . | . . . . . . . . . . . . . Robots Hopped . | . . . . . . . . . . . . . Cave-ins Triggered . | . . . . . . . . . . . . . Exploration Rate (%) 65 | 7 83 95 71 58 52 73 44 28 97 84 85 78 Regions Visited 12 Branch Regions 7 Pre-discovered Areas 9 | . 2 1 1 . . . . . 1 . 4 . Known Exits Taken 3 | . . . . . 1 . 1 1 . . . . Unknown Exits Taken 8 | 1 1 1 1 1 . . . . 1 1 1 . Scrap Searched 8 | . . 1 . 1 . . . . 2 1 3 . Spaces Dug 99 | . 3 11 . 8 . 17 1 . . 32 2 25 Terrain Destroyed 458 | . 8 27 . 12 9 89 30 144 3 63 2 71 Melee 5 | . . . . . . 2 1 . . . 2 . Projectile 83 | . 8 3 . 12 . . . 26 . 1 . 33 AOE 370 | . . 24 . . 9 87 29 118 3 62 . 38 Terrain Rammed . | . . . . . . . . . . . . . Walls Destroyed . | . . . . . . . . . . . . . Machines Disabled . | . . . . . . . . . . . . . Actions | -11 -10 -10 -10 -9 -8 -8 -8 -7 -7 -7 -7 -7 --------- Run | Jun Mat Min Exi Min Mat Gar Mat Fac Low Low Zio Dee Total 10061 | 222 773 804 305 346 690 762 714 1155 1179 894 1204 1013 Wait 401 | 47 23 42 . 66 66 18 23 60 13 1 8 34 Move 8338 | 129 646 700 300 251 509 592 491 862 1082 826 1136 814 Hop . | . . . . . . . . . . . . . Pick Up 114 | 5 14 5 3 1 25 12 12 15 6 5 7 4 Fast Attach 73 | 8 . . . . 5 3 19 17 1 2 6 12 Attach 74 | . 3 3 . 1 5 4 9 16 8 7 8 10 Detach 45 | 1 1 . . . 1 1 2 7 8 6 7 11 Swap 109 | 2 5 10 1 6 9 15 21 24 8 5 1 2 Drop 125 | . 7 2 1 . 20 14 28 23 8 2 5 15 Fire 650 | 27 63 39 . 20 40 72 104 118 26 34 . 107 Melee 18 | . . . . . 1 5 1 . . . 11 . Ram 1 | . . . . . 1 . . . . . . . Kick 12 | 3 9 . . . . . . . . . . . Crush 51 | . 2 3 . 1 7 . 1 11 6 5 14 1 Escape Stasis 26 | . . . . . . 26 . . . . . . Rewire 2 | . . . . . . . . . 1 . 1 . Trap 22 | . . . . . 1 . 3 2 12 1 . 3 Miscellaneous . | . . . . . . . . . . . . . Route ------- -11/Junkyard -10/Materials (discovered 4 exits: [*Mat x2] / *Min x2) -10/Mines (discovered 2 exits: [*Mat] / *Exi) -10/Exiles -9/Mines -8/Materials (discovered 2 exits: Fac / Gar) -8/Garrison (discovered 2 exits: *Fac / *Mat) -8/Materials -7/Factory (discovered 2 exits: *Low x2) -7/Lower Caves -7/Lower Caves (discovered 2 exits: [*Fac] / [*Zio]) -7/Zion (discovered 2 exits: [*Dee] / [*Pro]) -7/Deep Caves (discovered 1 exit: [*Pro]) History --------- Turn | Location | Event 5 | -11/Junkyard | Discovered new exit (range 15) 306 | -11/Junkyard | Entered Materials 307 | -10/Materials | Build established: Mutant 315 | -10/Materials | Central database locked down 617 | -10/Materials | Discovered new exit (range 9) 673 | -10/Materials | Discovered new exit (range 12) 1220 | -10/Materials | Discovered new exit (range 13) 1538 | -10/Materials | Discovered new exit (range 12) 1735 | -10/Materials | Entered Mines 1735 | -10/Mines | Accompanied by 1 ally 1783 | -10/Mines | Deemed a non-threat by the Exiles lab entrance 1783 | -10/Mines | Discovered new exit (range 5) 1851 | -10/Mines | Learned 4 Materials zone layouts 1939 | -10/Mines | Learned location of Storage (-9) 2081 | -10/Mines | Core integrity fell below 50% 2111 | -10/Mines | Discovered new exit (range 5) 2137 | -10/Mines | Assembled infested the area 2348 | -10/Mines | A weapon hastily lodged in a ceiling crevice suddenly fell to the ground 2556 | -10/Mines | Received a Rocket Launcher from a helpful Derelict 2665 | -10/Mines | Core integrity fell below 20% 3044 | -10/Mines | Entered Exiles 3083 | -10/Exiles | Met 8R-AWN 3112 | -10/Exiles | Met EX-HEX 3237 | -10/Exiles | Met EX-DEC 3285 | -10/Exiles | Learned location of Zion (-7) 3328 | -10/Exiles | Met EX-BIN 3362 | -10/Exiles | Aligned with FarCom system 3364 | -10/Exiles | Given EX-Vault access code 3424 | -10/Exiles | Opened EX-Vault 3448 | -10/Exiles | Found Firepult 3454 | -10/Exiles | Found YOLO Cannon 3465 | -10/Exiles | Found PSU Rigger 3519 | -10/Exiles | Warned to stay clear of 0b10 Research branches 3682 | -10/Exiles | Discovered new exit (range 14) 3708 | -10/Exiles | Stole three prototypes: Firepult, YOLO Cannon, PSU Rigger 3708 | -10/Exiles | Entered Mines 3867 | -9/Mines | Learned Materials emergency access door positions 4298 | -9/Mines | Discovered new exit (range 11) 4463 | -9/Mines | Entered Materials 4463 | -8/Materials | Evolved 4 slots: Propulsion x2, Utility x2 4464 | -8/Materials | Identified exit to Factory 4635 | -8/Materials | Identified exit to Garrison 5197 | -8/Materials | Repaired Lgt. Treads 5235 | -8/Materials | Repaired Corrupted Lgt. Treads 5603 | -8/Materials | Garrison activated, responded to threat 5693 | -8/Materials | Entered Garrison 5764 | -8/Garrison | Phase Generator disabled 5831 | -8/Garrison | Garrison Relay disabled 5844 | -8/Garrison | Triggered checkpoint 6000 | -8/Garrison | Rescued a captive Derelict 6002 | -8/Garrison | Rescued a captive Derelict 6084 | -8/Garrison | Triggered checkpoint 6114 | -8/Garrison | Discovered new exit (range 3) 6389 | -8/Garrison | Triggered checkpoint 6475 | -8/Garrison | Build established: Scavenger-Mutant 6714 | -8/Garrison | Discovered exit to Factory (range 10) 6818 | -8/Garrison | Triggered checkpoint 6844 | -8/Garrison | Garrison Relay disabled 6968 | -8/Garrison | Triggered checkpoint 7114 | -8/Garrison | Garrison Relay disabled 7427 | -8/Garrison | Entered Materials 7541 | -8/Materials | System corruption reached 10% 8553 | -8/Materials | Repaired Lgt. Treads? 8870 | -8/Materials | Discovered exit to Factory (range 5) 9028 | -8/Materials | Entered Factory 9028 | -7/Factory | Evolved 2 slots: Utility x2 9030 | -7/Factory | FarCom data flow suspended 9191 | -7/Factory | Lost 3 parts (1p1u1w) 9744 | -7/Factory | Identified exit to Lower Caves 9831 | -7/Factory | Garrison activated, responded to threat 9899 | -7/Factory | Destroyed 7 combat bots 9961 | -7/Factory | Build established: Mutant 10628 | -7/Factory | First assault squad dispatched 10878 | -7/Factory | Lost 4 parts (1n2u1w) 11150 | -7/Factory | Lost 4 parts (1p1n2u) 11217 | -7/Factory | Entered Lower Caves 11219 | -7/Lower Caves | Attracted the attention of an 0b10 checkpoint 11226 | -7/Lower Caves | Met a Warlord Commander 11227 | -7/Lower Caves | Learned location of Warlord (-4) 11230 | -7/Lower Caves | Found Encrypted Comm Array 11769 | -7/Lower Caves | Learned 8 Factory zone layouts 11814 | -7/Lower Caves | Learned Factory garrison access intel 12249 | -7/Lower Caves | Spotted B-75 Beast 12345 | -7/Lower Caves | Build established: Trapper-Mutant 12552 | -7/Lower Caves | Destroyed B-75 Beast 12757 | -7/Lower Caves | Core integrity fell below 50% 13263 | -7/Lower Caves | Discovered new exit (range 8) 13934 | -7/Lower Caves | Entered another Lower Caves area 14307 | -7/Lower Caves | Discovered new exit (range 8) 14690 | -7/Lower Caves | Build established: Mutant 14867 | -7/Lower Caves | Learned location of 1 exit from Factory 14882 | -7/Lower Caves | Learned Factory terminal intel 15344 | -7/Lower Caves | Build established: Trapper-Mutant 15624 | -7/Lower Caves | Spotted IY-SOF(f) 15625 | -7/Lower Caves | Encountered a Master Thief 15626 | -7/Lower Caves | Spotted IF-N1J(f) 15627 | -7/Lower Caves | Encountered a Master Thief 15627 | -7/Lower Caves | Spotted 51-MNJ(f) 15628 | -7/Lower Caves | Encountered a Master Thief 15629 | -7/Lower Caves | Firepult stolen by Master Thief 15629 | -7/Lower Caves | Destroyed IF-N1J(f) 15629 | -7/Lower Caves | Destroyed 51-MNJ(f) 15638 | -7/Lower Caves | PSU Rigger stolen by Master Thief 15666 | -7/Lower Caves | Found Alien Artifact 15666 | -7/Lower Caves | Identified Core Expander 15666 | -7/Lower Caves | Installed Core Expander, added new Power slot 15712 | -7/Lower Caves | Discovered new exit (range 5) 16037 | -7/Lower Caves | Entered Zion 16106 | -7/Zion | System corruption cleaned by Quarantine Array 16145 | -7/Zion | Given A8's code to call for help 16266 | -7/Zion | Discovered new exit (range 14) 16558 | -7/Zion | Learned location of Extension (-4) 17209 | -7/Zion | Learned location of Armory (-3) 17416 | -7/Zion | Given the Hacking Drone Bay 17503 | -7/Zion | Learned location of Quarantine (-3) 17950 | -7/Zion | Discovered new exit (range 5) 17953 | -7/Zion | Saw the warning signs outside the Deep Caves entrance 18269 | -7/Zion | Build established: Hauler-Mutant 18276 | -7/Zion | Found Unknown Piercing Weapon 18276 | -7/Zion | Identified CR-A16's Pointy Stick 18439 | -7/Zion | Visited the Megawrench Repair Shop 18439 | -7/Zion | Megawrench repaired 11 parts 19053 | -7/Zion | Entered Deep Caves 19361 | -7/Deep Caves | Build established: Trapper-Mutant 19510 | -7/Deep Caves | Attacked by Z-Imprinter 19536 | -7/Deep Caves | Destroyed Z-Imprinter 19544 | -7/Deep Caves | Found Prototype Device 19544 | -7/Deep Caves | Identified Zio. Metafield Generator 19579 | -7/Deep Caves | Found Prototype Protection 19579 | -7/Deep Caves | Identified Zio. Weapon Casing 19592 | -7/Deep Caves | Found Zio. Weapon Casing 19708 | -7/Deep Caves | Z-Facility disabled 19731 | -7/Deep Caves | Found Zio. Weapon Casing 19809 | -7/Deep Caves | Build established: Scavenger-Mutant 20727 | -7/Deep Caves | Discovered new exit (range 11) 21231 | -7/Deep Caves | Spotted as-45547 21238 | -7/Deep Caves | Core integrity fell below 20% 21242 | -7/Deep Caves | Destroyed as-45547 21272 | -7/Deep Caves | Lost 4 parts (1n3u) 21368 | -7/Deep Caves | Destroyed by as-71582 with Assembled Focal Cannon Last Messages --------------- 20071_ Identified Imp. Reaction Control System. 20072_ Dropped Imp. Reaction Control System. 20075_ Acquired Imp. Medium Armor Plating. 20164_ Acquired 18 matter. 20166_ Acquired 10 matter. 20390_ as-22427 destroyed. 20393_ The unstable cave ceiling collapses. 20406_ Acquired 9 matter. 20409_ The unstable cave ceiling collapses. 20727_ EXIT=FOUND 21221_ Dropped YOLO Cannon. 21222_ Acquired YOLO Cannon. 21234_ Med. Treads destroyed. 21235_ as-45547: "DSI9AT1D G8OHIBQ29FWG 26R186 QD12WHW8W33 TDK1 81FTS" 21237_ Imp. Cooling System destroyed. 21241_ Zio. Light Carapace destroyed. 21241_ Exp. Heat Sink destroyed. 21242_ Destroyed Prototype Device. 21242_ as-45547 suffers critical hit (Meltdown). 21368_ 32-VUB(M) destroyed. Map ----- +----------------------------------------------------+ | ????????# """ "" ### #?? | | ?????????" ####### ##?# #?? | | ?????????" ######### ####?## #?? | | ?????????" " " ##???## ### | | ?????????" ####### " ##??## ## | | ?????????" #?# #?# "" #### | | ????????# | ### #### ### | | ????????# ! # "##?## | | ????????# #####???########### | | ????????# ! ###??????????????## | | ????????# ! #???????????????# | | ????????# ! ###?????????####### | | ????????# = ##??????????# ## | | ????????# = = #?????###### ## | | ????????? #????## ## ##? | | ????????? #????# ##?? | | ?????????? = [ #????# ##?? | | ?????????? = gg [! #????## ### | | ??????????? b #????## | | ???????????? #??### ## | | ???????????? / #### ## ##### | | ??????????? == [ ## ##### ##??## | | ??????????? / ## ##???## ##??# | | ?????????? b b ### ##?????## #??? | | ?????????? // ### #???????# ##?? | | ?????????? = @ #???????## ##? | | ?????????"" %! ##???????## #? | | ????????? #?????### #? | | ?????????" ######?????# #? | | ????????" #??????????# ##? | | ?????????" ##??????????# ##? | | ????????" # # #???????????## #? | | ????????" #### ## ## ##????????????### #? | | ?????????"" ? #????# ?# ####???????????????## ##? | | ???????????????????#??# ?????????????????????###?? | | ???????????????????????#?????????????????????????? | | | | | | | | | | | | | | | | | | | | | | | | | | | | | +----------------------------------------------------+ Best States ------------- Heat Dissipation 113 Energy Generation 25 Energy Capacity 470 Matter Stores 300 Matter Capacity 300 Sight Range 16 Terrain Scan Density 10 Armor Coverage 625 Resistance: KI 20 Resistance: TH 10 Utility Shielding 66 Weapon Shielding 100 Evasion (%) 55 Core Analysis 6 Recoil Reduction 4 Kinecelleration 30 Offensive Hacking 20 Trap Extractor Capacity 6 Item Schematics ----------------- Cargo Storage Unit | -10/Mines | Hacked Imp. Utility Shielding | -8/Materials | Scanalyzed Imp. Trap Extractor | -7/Factory | Hacked Adv. Terrain Scanner | -7/Zion | Archive Hvy. Laser | -7/Zion | Archive Mak. System Shield | -7/Zion | Archive Imp. Hardlight Generator | -7/Zion | Archive Point Defense System | -7/Zion | Archive Plasma Cannon | -7/Zion | Archive Coil Gun | -7/Zion | Archive Mak. Power Source | -7/Zion | Archive Adv. Signal Interpreter | -7/Zion | Archive System Restoration Module | -7/Zion | Archive Adv. Melee Analysis Suite | -7/Zion | Archive Mak. Sword | -7/Zion | Archive 0b10 Decoder Chip [Looter] | -7/Zion | Archive Phasing Sabre | -7/Zion | Archive Robot Schematics ------------------ K-01 Serf | -7/Zion | Archive M-28 Smith | -7/Zion | Archive R-06 Scavenger | -7/Zion | Archive X-82 Rainmaker | -7/Zion | Archive Fabricated ------------ Nothing Alien Tech Used ----------------- Core Expander Achievements -------------- None Challenges ------------ None Game ------ Seed SegregatorLayeredCoupler Manual? 0 Play Time 02:21:36 Cumulative 436.2 hours Start 2024.01.11 @ 21:15:36 End 2024.01.15 @ 01:03:41 Sessions 11 Manual Loads 0 Difficulty Rogue Special Mode None Game No. 175 Rogue 175 Adventurer 0 Explorer 0 Win Type - Total 21 Types 8/0/5/3/0/0/4/1/0 Lore% 91 Gallery% 93 Achievement% 82 Wizard Run 0 Options --------- ASCII 0 Keyboard 1 Movement Arrows Keybinds 0 Fullscreen 2 Font 18/X11 Map View 76x50 Tactical HUD 1 Map Filters NONE Filters NONE Steam 1 RUN: 87e68cf8-d5f8-431b-b3bf-f31bf891084e